lending/lending_fUSD_20260104
["ID","MTS","AMOUNT","RATE_DAILY","PERIOD"]
[400415382,1767531041051,-151.0,0.00017116,2]
[400415384,1767531041060,-425.53462522,0.00017178,2]
[400415386,1767531041070,-425.53462522,0.00017233,2]
[400415388,1767531041083,-832.78,0.0001726,2]
[400415390,1767531041094,-4538.34168894,0.00017299,2]
[400415392,1767531041103,-425.53462522,0.00017315,2]
[400415393,1767531041114,-500.0,0.00017342,2]
[400415394,1767531041123,-796.0,0.00017357,2]
[400415395,1767531041133,-425.53462522,0.0001737,2]
[400415396,1767531041143,-167.43,0.00017389,2]
[400415397,1767531041152,-425.53462522,0.00017452,2]
[400415398,1767531041162,-4538.34168894,0.000175,2]
[400415399,1767531041169,-425.53462522,0.00017507,2]
[400415400,1767531041175,-832.78,0.00017534,2]
[400415401,1767531041182,-796.0,0.00017546,2]
[400415402,1767531041190,-425.53462522,0.00017589,2]
[400415404,1767531041200,-420.0,0.00017598,2]
[400415406,1767531041210,-420.0,0.00017598,2]
[400415408,1767531041219,-1200.0,0.000176,3]
[400415410,1767531041229,-917.70497562,0.0001764,2]
[400415412,1767531041239,-425.53462522,0.00017644,2]
[400415414,1767531041248,-1680.0,0.00017686,2]
[400415416,1767531041258,-4538.34168894,0.000177,2]
[400415419,1767531041270,-1000.0,0.000177,2]
[400415421,1767531041280,-600.0,0.00017708,2]
[400415423,1767531041289,-600.0,0.00017708,2]
[400415425,1767531041299,-600.0,0.00017708,2]
[400415427,1767531041308,-600.0,0.00017708,2]
[400415429,1767531041318,-600.0,0.00017708,2]
[400415431,1767531041328,-300.0,0.00017708,2]
[400415433,1767531041337,-195.0,0.00017708,2]
[400415435,1767531041349,-300.0,0.00017708,2]
[400415437,1767531041358,-300.0,0.00017708,2]
[400415439,1767531041368,-2500.0,0.00017708,2]
[400415441,1767531041377,-300.0,0.00017708,2]
[400415443,1767531041389,-195.0,0.00017708,2]
[400415445,1767531041399,-425.53462522,0.00017726,2]
[400415447,1767531041408,-296.49,0.00017727,2]
[400415449,1767531041418,-425.53462522,0.00017781,2]
[400415451,1767531041428,-206.57971884,0.000178,2]
[400415453,1767531041437,-1632.3679,0.000178,2]
[400415455,1767531041447,-1000.0,0.000178,2]
[400415456,1767531041457,-832.78,0.00017808,2]
[400415457,1767531041467,-193.0,0.00017818,2]
[400415458,1767531041476,-198.40981234,0.00017818,2]
[400415459,1767531041487,-250.0,0.00017818,2]
[400415460,1767531041496,-3144.88404,0.0001782,2]
[400415461,1767531041507,-3144.88404,0.0001782,2]
[400415462,1767531041516,-3144.88404,0.0001783,2]
[400415463,1767531041526,-1280.0,0.00017848,2]
[400415464,1767531041536,-3144.88404,0.0001786,2]
[400415465,1767531041546,-425.53462522,0.00017863,2]
[400415466,1767531041556,-3144.88404,0.0001788,2]
[400415467,1767531041566,-724.36805306,0.00017894,2]
[400415468,1767531041575,-1280.0,0.00017897,2]
[400415469,1767531041585,-500.0,0.00017897,2]
[400415470,1767531041595,-500.0,0.00017897,2]
[400415471,1767531041605,-500.0,0.00017897,2]
[400415472,1767531041615,-796.0,0.00017898,2]
[400415473,1767531041625,-422.71458731,0.00017899,2]
[400415474,1767531041635,-10000.0,0.000179,2]
[400415475,1767531041645,-339.67863184,0.000179,2]
[400415476,1767531041667,-4538.34168894,0.000179,2]
[400415477,1767531041677,-1000.0,0.000179,2]
[400415478,1767531041688,-2500.0,0.000179,2]
[400415479,1767531041698,-3144.88404,0.0001791,2]
[400415480,1767531041707,-796.0,0.00017935,2]
[400415481,1767531041717,-633.13,0.0001799,2]
[400415482,1767531041727,-3499.321,0.0001799,2]
[400415483,1767531041737,-1538.399,0.0001799,2]
[400415484,1767531041747,-550.012,0.0001799,2]
[400415485,1767531041757,-1200.0,0.0001799,2]
[400415486,1767531041767,-913.0,0.0001799,2]
[400415487,1767531041777,-150.0,0.0001799,2]
[400415488,1767531041786,-622.4,0.0001799,2]
[400415489,1767531041797,-4810.0,0.0001799,2]
[400415490,1767531041807,-222.79183718,0.0001799,2]
[400415491,1767531041817,-222.79183718,0.0001799,2]
[400415492,1767531041827,-151.0,0.00017997,2]
[400415493,1767531041837,-2360.7223993,0.00017998,2]
[400415494,1767531041847,-500.0,0.00017999,2]
[400415495,1767531041857,-500.0,0.00017999,2]
[400415496,1767531041867,-500.0,0.00017999,2]
[400415497,1767531041878,-666.0,0.00017999,2]
[400415498,1767531041889,-3623038.66697767,0.00018,2]
[400415499,1767531041899,-740449.20308993,0.00018,2]
[400415500,1767531041909,-302930.87727089,0.00018,2]
[400415501,1767531041925,-259.0526955,0.00018,2]
[400415508,1767531043495,-2434.0,0.0001799,2]
[400415511,1767531043506,-18404.49360884,0.00018,2]
[400415516,1767531043570,-193.16898968,0.00018,2]
[400415526,1767531045714,-151.0,0.00017105,2]
[400415527,1767531045724,-1197.84728077,0.00018,2]
[400415528,1767531045929,-304.26481155,0.00018,2]
[400415529,1767531045941,-1699.11157802,0.00018,2]
[400415533,1767531051829,-898840.5164985,0.00018,2]
[400415534,1767531059877,2000.0,0.00043687,30]
[400415535,1767531063167,1000.0,0.00015998,2]
[400415536,1767531069810,500.0,0.00016097,2]
[400415537,1767531070081,500.0,0.00016097,2]
[400415538,1767531070367,500.0,0.00016097,2]
[400415556,1767531093621,241.8421,0.00015998,2]
[400415563,1767531129049,-250.0,0.00017,2]
[400415564,1767531133798,200.0,0.0001664,2]
[400415565,1767531134428,207.4,0.0001664,2]
[400415566,1767531135038,215.0738,0.0001664,2]
[400415567,1767531135804,333.82392571,0.0001664,2]
[400415569,1767531146705,183.9,0.00013592,2]
[400415570,1767531147402,183.9,0.0001699,2]
[400415571,1767531178803,9632.21,0.00015998,2]
[400415572,1767531178832,10000.01,0.00015998,2]
[400415573,1767531178860,10000.01,0.00015998,2]
[400415574,1767531178886,10000.01,0.00015998,2]
[400415575,1767531178913,10000.01,0.00015998,2]
[400415576,1767531178941,10000.01,0.00015998,2]
[400415577,1767531178968,10000.01,0.00015998,2]
[400415578,1767531178996,10000.01,0.00015998,2]
[400415579,1767531179027,36903.77597132,0.00015998,2]
[400415581,1767531179057,25000.0,0.00015998,2]
[400415602,1767531269125,731.7,0.00013699,2]
[400415608,1767531301307,300.0,0.00015997,2]
[400415609,1767531301342,1200.0,0.00015997,2]
[400415627,1767531335533,488.1888927,0.00015997,2]
[400415651,1767531361478,300.0,0.00015997,2]
[400415652,1767531362304,3867.31323525,0.00015898,2]
[400415654,1767531367115,3112.80787205,0.00015898,2]
[400415655,1767531367145,971.69964805,0.00015898,2]
[400415678,1767531421294,300.0,0.00015997,2]
[400415723,1767531481677,300.0,0.00015997,2]
[400415727,1767531508620,150.32795866,0.00043685,120]
[400415743,1767531541876,300.0,0.00015997,2]
[400415751,1767531601183,300.0,0.00015997,2]
[400415752,1767531601222,300.0,0.00015997,2]
[400415753,1767531601255,1200.0,0.00015997,2]
[400415754,1767531603670,284.0,0.00015998,2]
[400415767,1767531635780,341.73222489,0.00015997,2]
[400415771,1767531661296,300.0,0.00015997,2]
[400415774,1767531680638,500.0,0.00015997,2]
[400415775,1767531680870,500.0,0.00015997,2]
[400415776,1767531681108,220.50523453,0.00015997,2]
[400415790,1767531692855,500.0,0.00015997,2]
[400415791,1767531693642,931.649,0.00015678,2]
[400415792,1767531698507,110882.4515,0.00043681,30]
[400415793,1767531708659,2750.42389253,0.00015898,2]
[400415794,1767531708685,3949.67570747,0.00015898,2]
[400415796,1767531719231,500.0,0.00015997,2]
[400415797,1767531748637,3480.58191168,0.00015898,2]
[400415810,1767531781222,300.0,0.00015997,2]
[400415811,1767531823124,260.0,0.00032,120]
[400415814,1767531841242,300.0,0.00015997,2]
[400415822,1767531877401,1469.75238085,0.00015898,2]
[400415823,1767531877433,2206.30438724,0.00015898,2]
[400415824,1767531901538,300.0,0.00015997,2]
[400415825,1767531901577,300.0,0.00015997,2]
[400415826,1767531901619,1200.0,0.00015997,2]
[400415827,1767531903641,180.0,0.0003,120]
[400415858,1767532021721,300.0,0.00015997,2]
[400415859,1767532025123,-4379.8248507,0.00015998,2]
[400415860,1767532031095,-489.4914018,0.00015998,2]
[400415861,1767532046138,-17410.16944706,0.00015998,2]
[400415879,1767532088723,500.0,0.00015997,2]
[400415886,1767532134926,3132.52372053,0.00015898,2]
[400415897,1767532161087,-5353.484612,0.00015998,2]
[400415898,1767532171117,-5748.226456,0.00015998,2]
[400415900,1767532201208,300.0,0.00015997,2]
[400415901,1767532201244,300.0,0.00015997,2]
[400415902,1767532201505,1200.0,0.00015997,2]
[400415903,1767532208958,261.18189223,0.00015898,2]
[400415904,1767532208996,10000.01,0.00015898,2]
[400415905,1767532209029,10000.01,0.00015898,2]
[400415906,1767532209062,10000.01,0.00015898,2]
[400415907,1767532209095,10000.01,0.00015898,2]
[400415908,1767532209128,10000.01,0.00015898,2]
[400415909,1767532209161,10000.01,0.00015898,2]
[400415910,1767532209194,10000.01,0.00015898,2]
[400415911,1767532209236,10000.01,0.00015898,2]
[400415912,1767532209278,10000.01,0.00015898,2]
[400415917,1767532231892,-955.4655682,0.00015898,2]
[400415918,1767532231906,-380.48282423,0.00015898,2]
[400415919,1767532231918,-545.19857012,0.00015898,2]
[400415923,1767532232261,-1032.00616953,0.00015898,2]
[400415924,1767532232273,-2723.80115862,0.00015898,2]
[400415925,1767532232285,-15072.13729161,0.00015898,2]
[400415928,1767532237943,-2705.81689856,0.00015898,2]
[400415929,1767532237955,-1760.17969218,0.00015898,2]
[400415930,1767532238065,-12827.24512125,0.00015898,2]
[400415931,1767532238100,-1934.46327184,0.00015898,2]
[400415932,1767532238113,-3107.499998,0.00015898,2]
[400415935,1767532240033,-866694.43154363,0.00015898,2]
[400415936,1767532240043,-1953.03317654,0.00015998,2]
[400415937,1767532240053,-1000.0,0.00015998,2]
[400415938,1767532240063,-500.0,0.00015998,2]
[400415939,1767532240072,-163.1260951,0.00015998,2]
[400415940,1767532240082,-163.1260951,0.00015998,2]
[400415941,1767532240091,-163.1260951,0.00015998,2]
[400415942,1767532240105,-300.0,0.00015998,2]
[400415943,1767532240116,-195.0,0.00015998,2]
[400415944,1767532240125,-193.0,0.00015998,2]
[400415945,1767532240135,-2500.0,0.00015998,2]
[400415946,1767532240145,-300.0,0.00015998,2]
[400415947,1767532240155,-195.0,0.00015998,2]
[400415948,1767532240164,-300.0,0.00015998,2]
[400415949,1767532240174,-300.0,0.00015998,2]
[400415950,1767532240184,-2500.0,0.00015998,2]
[400415951,1767532240194,-250.0,0.00015998,2]
[400415952,1767532240204,-300.0,0.00015998,2]
[400415953,1767532240213,-300.0,0.00015998,2]
[400415954,1767532240224,-195.0,0.00015998,2]
[400415955,1767532240234,-250.0,0.00015999,2]
[400415956,1767532240243,-3676.05676803,0.0001612,2]
[400415957,1767532240252,-3132.52372047,0.0001612,2]
[400415958,1767532240262,-21344.43,0.00016174,2]
[400415959,1767532240272,-500.0,0.00016197,2]
[400415960,1767532240281,-4574.13,0.00016292,2]
[400415961,1767532240291,-167.41,0.00016306,2]
[400415962,1767532240301,-3676.05676803,0.00016343,2]
[400415963,1767532240311,-3132.52372047,0.00016343,2]
[400415964,1767532240321,-15786.30414835,0.00016386,2]
[400415965,1767532240330,-150.0,0.00016416,2]
[400415966,1767532240340,-200.0,0.00016418,2]
[400415967,1767532240349,-500.0,0.00016438,2]
[400415968,1767532240359,-500.0,0.00016438,2]
[400415969,1767532240369,-500.0,0.00016438,2]
[400415970,1767532240379,-500.0,0.00016438,2]
[400415971,1767532240388,-500.0,0.00016438,2]
[400415972,1767532240398,-500.0,0.00016438,2]
[400415973,1767532240407,-500.0,0.00016438,2]
[400415974,1767532240418,-500.0,0.00016438,2]
[400415975,1767532240428,-500.0,0.00016438,2]
[400415976,1767532240438,-500.0,0.00016438,2]
[400415977,1767532240448,-312.14821016,0.00016438,2]
[400415978,1767532240462,-500.0,0.00016438,2]
[400415979,1767532240471,-500.0,0.00016438,2]
[400415980,1767532240480,-832.78,0.00016438,2]
[400415981,1767532240490,-4627.14,0.00016438,2]
[400415982,1767532240500,-3676.05676803,0.00016565,2]
[400415983,1767532240510,-3132.52372047,0.00016565,2]
[400415984,1767532240519,-999.0,0.00016612,3]
[400415985,1767532240529,-500.0,0.00016701,2]
[400415986,1767532240538,-200.0,0.00016701,2]
[400415987,1767532240548,-207.4,0.00016701,2]
[400415988,1767532240557,-215.0738,0.00016701,2]
[400415989,1767532240567,-223.0315306,0.00016701,2]
[400415990,1767532240576,-231.28369723,0.00016701,2]
[400415991,1767532240586,-239.84119403,0.00016701,2]
[400415992,1767532240596,-248.71531821,0.00016701,2]
[400415993,1767532240606,-257.91778498,0.00016701,2]
[400415994,1767532240616,-267.46074303,0.00016701,2]
[400415995,1767532240625,-277.35679052,0.00016701,2]
[400415996,1767532240635,-832.78,0.00016712,2]
[400415997,1767532240645,-3676.05676803,0.00016788,2]
[400415998,1767532240658,-3132.52372047,0.00016788,2]
[400415999,1767532240669,-3188.92,0.00016921,2]
[400416000,1767532240678,-600.88665179,0.00016975,2]
[400416001,1767532240688,-832.78,0.00016986,2]
[400416002,1767532240698,-500.0,0.00016986,2]
[400416003,1767532240707,-3676.05676803,0.0001701,2]
[400416004,1767532240717,-3132.52372047,0.0001701,2]
[400416005,1767532240727,-4581.52,0.00017021,2]
[400416006,1767532240736,-963.27,0.00017041,2]
[400416007,1767532240747,-151.0,0.00017045,2]
[400416008,1767532240758,-151.0,0.0001705,2]
[400416009,1767532240767,-151.0,0.00017066,2]
[400416010,1767532240778,-425.53462522,0.00017096,2]
[400416011,1767532240790,-4574.13,0.00017107,2]
[400416012,1767532240800,-151.35,0.00017137,2]
[400416013,1767532240809,-151.0,0.00017137,2]
[400416014,1767532240828,-151.0,0.00017137,2]
[400416015,1767532240847,-151.0,0.00017143,2]
[400416016,1767532240857,-151.0,0.00017143,2]
[400416017,1767532240867,-151.0,0.00017143,2]
[400416018,1767532240879,-425.53462522,0.00017178,2]
[400416019,1767532240890,-3676.05676803,0.00017233,2]
[400416020,1767532240900,-3132.52372047,0.00017233,2]
[400416021,1767532240911,-425.53462522,0.00017233,2]
[400416022,1767532240920,-832.78,0.0001726,2]
[400416023,1767532240930,-425.53462522,0.00017315,2]
[400416024,1767532240939,-828.0,0.00017323,2]
[400416025,1767532240949,-425.53462522,0.0001737,2]
[400416026,1767532240959,-4407.0,0.00017391,2]
[400416027,1767532240969,-425.53462522,0.00017452,2]
[400416028,1767532240979,-3676.05676803,0.00017455,2]
[400416029,1767532240988,-3132.52372047,0.00017455,2]
[400416030,1767532240998,-176.0,0.0001749,2]
[400416031,1767532241009,-420.0,0.0001749,2]
[400416032,1767532241018,-425.53462522,0.00017507,2]
[400416033,1767532241028,-832.78,0.00017534,2]
[400416034,1767532241037,-4407.0,0.00017538,2]
[400416035,1767532241047,-151.0,0.00017541,2]
[400416036,1767532241057,-828.0,0.00017544,2]
[400416037,1767532241067,-1680.0,0.00017578,2]
[400416038,1767532241076,-425.53462522,0.00017589,2]
[400416039,1767532241086,-2875.02,0.00017592,2]
[400416040,1767532241096,-250.0,0.00017598,2]
[400416041,1767532241106,-150.0,0.00017598,2]
[400416042,1767532241115,-300.0,0.00017598,2]
[400416043,1767532241125,-2500.0,0.00017598,2]
[400416044,1767532241135,-300.0,0.00017598,2]
[400416045,1767532241144,-195.0,0.00017598,2]
[400416046,1767532241154,-1611.74005586,0.00017598,2]
[400416047,1767532241165,-300.0,0.00017598,2]
[400416048,1767532241175,-195.0,0.00017598,2]
[400416049,1767532241186,-193.0,0.00017598,2]
[400416050,1767532241196,-2500.0,0.00017598,2]
[400416051,1767532241206,-198.40981234,0.00017598,2]
[400416052,1767532241215,-600.0,0.00017598,2]
[400416053,1767532241225,-600.0,0.00017598,2]
[400416054,1767532241239,-600.0,0.00017598,2]
[400416055,1767532241260,-600.0,0.00017598,2]
[400416056,1767532241288,-600.0,0.00017598,2]
[400416057,1767532241305,-300.0,0.00017598,2]
[400416058,1767532241317,-917.70497562,0.0001764,2]
[400416059,1767532241329,-425.53462522,0.00017644,2]
[400416060,1767532241341,-828.0,0.00017651,2]
[400416061,1767532241353,-3676.05676803,0.00017678,2]
[400416062,1767532241365,-3132.52372047,0.00017678,2]
[400416063,1767532241376,-1000.0,0.000177,2]
[400416064,1767532241387,-4407.0,0.00017701,2]
[400416065,1767532241398,-828.0,0.00017715,2]
[400416066,1767532241411,-425.53462522,0.00017726,2]
[400416067,1767532241422,-227.2517329,0.00017746,2]
[400416068,1767532241432,-425.53462522,0.00017781,2]
[400416069,1767532241444,-2495.0,0.00017789,2]
[400416071,1767532241455,-1538.399,0.0001779,2]
[400416072,1767532241466,-3499.321,0.0001779,2]
[400416073,1767532241475,-633.13,0.0001779,2]
[400416074,1767532241486,-1274.058,0.0001779,2]
[400416075,1767532241496,-550.012,0.0001779,2]
[400416076,1767532241507,-622.4,0.0001779,2]
[400416077,1767532241518,-6547.0,0.0001779,2]
[400416078,1767532241528,-2434.0,0.0001779,2]
[400416079,1767532241541,-1632.3679,0.000178,2]
[400416080,1767532241551,-1000.0,0.000178,2]
[400416081,1767532241562,-832.78,0.00017808,2]
[400416082,1767532241572,-2250.02598,0.0001782,2]
[400416083,1767532241582,-2250.02599,0.0001782,2]
[400416084,1767532241592,-2250.02598,0.0001783,2]
[400416085,1767532241602,-206.57971884,0.0001786,2]
[400416086,1767532241612,-2250.02599,0.0001786,2]
[400416087,1767532241622,-425.53462522,0.00017863,2]
[400416088,1767532241632,-2250.02599,0.0001788,2]
[400416089,1767532241643,-10000.0,0.000179,2]
[400416090,1767532241653,-3676.05676803,0.000179,2]
[400416091,1767532241663,-339.67863184,0.000179,2]
[400416092,1767532241678,-3132.52372047,0.000179,2]
[400416093,1767532241687,-828.0,0.00017906,2]
[400416094,1767532241698,-2250.02598,0.0001791,2]
[400416095,1767532241707,-4574.13,0.00017921,2]
[400416096,1767532241717,-222.79183718,0.00017989,2]
[400416097,1767532241727,-150.53,0.0001799,2]
[400416098,1767532241736,-150.0,0.0001799,2]
[400416099,1767532241749,-150.613,0.0001799,2]
[400416100,1767532241758,-150.356,0.0001799,2]
[400416101,1767532241769,-150.0,0.0001799,2]
[400416102,1767532241779,-163.705,0.0001799,2]
[400416103,1767532241791,-250.0,0.0001799,2]
[400416104,1767532241800,-250.0,0.0001799,2]
[400416105,1767532241810,-211.834,0.0001799,2]
[400416106,1767532241819,-227.401,0.0001799,2]
[400416107,1767532241830,-167.0,0.0001799,2]
[400416108,1767532241839,-222.79183718,0.0001799,2]
[400416109,1767532241849,-151.0,0.00017997,2]
[400416110,1767532241858,-132826.5691586,0.00017999,2]
[400416111,1767532241868,-205673.4561977,0.00017999,2]
[400416112,1767532241877,-666.0,0.00017999,2]
[400416113,1767532241897,-3848197.41355746,0.00018,2]
[400416114,1767532241918,-10720.65,0.00018,2]
[400416115,1767532241958,-486.64720581,0.00018,2]
[400416116,1767532241970,-1004061.0950165,0.00018,2]
[400416123,1767532243905,-4810.0,0.0001779,2]
[400416124,1767532243915,-2067702.08266961,0.00018,2]
[400416139,1767532246026,-828.27371429,0.00017509,2]
[400416142,1767532250867,500.0,0.00016438,2]
[400416143,1767532250905,500.0,0.00016438,2]
[400416144,1767532250938,500.0,0.00015997,2]
[400416145,1767532250975,500.0,0.00015997,2]
[400416146,1767532251011,500.0,0.00015997,2]
[400416147,1767532251046,354.91744336,0.00016438,2]
[400416148,1767532251077,157.79600896,0.00015997,2]
[400416149,1767532251114,500.0,0.00015997,2]
[400416150,1767532251150,500.0,0.00015997,2]
[400416151,1767532251184,500.0,0.00015997,2]
[400416152,1767532251219,500.0,0.00015997,2]
[400416153,1767532251254,500.0,0.00015997,2]
[400416154,1767532251295,500.0,0.00015997,2]
[400416155,1767532251334,500.0,0.00015997,2]
[400416156,1767532251373,500.0,0.00015997,2]
[400416157,1767532251408,500.0,0.00015997,2]
[400416158,1767532251446,351.27450356,0.00015997,2]
[400416159,1767532251480,500.0,0.00015997,2]
[400416160,1767532273126,500.0,0.00015997,2]
[400416161,1767532273160,500.0,0.00016438,2]
[400416162,1767532273197,500.0,0.00015997,2]
[400416163,1767532273236,500.0,0.00016438,2]
[400416164,1767532273271,500.0,0.00016438,2]
[400416165,1767532273311,500.0,0.00016438,2]
[400416166,1767532282534,500.0,0.00015897,2]
[400416174,1767532300383,500.0,0.00015997,2]
[400416175,1767532300421,266.69628261,0.00015997,2]
[400416176,1767532300457,500.0,0.00015997,2]
[400416177,1767532300491,500.0,0.00015997,2]
[400416179,1767532357983,456.14070919,0.00015997,2]
[400416184,1767532361079,9543.86929081,0.00015898,2]
[400416185,1767532361107,10000.01,0.00015898,2]
[400416186,1767532361135,10000.01,0.00015898,2]
[400416187,1767532361162,10000.01,0.00015898,2]
[400416188,1767532361188,10000.01,0.00015898,2]
[400416189,1767532361215,10000.01,0.00015898,2]
[400416190,1767532361243,10000.01,0.00015898,2]
[400416191,1767532361275,10000.01,0.00015898,2]
[400416192,1767532361304,10000.01,0.00015898,2]
[400416193,1767532361333,10000.01,0.00015898,2]
[400416198,1767532399531,-1200.0,0.00015796,2]
[400416199,1767532399565,-1953.46131777,0.00015797,2]
[400416200,1767532399596,-300.0,0.00015847,2]
[400416201,1767532399628,-593.08736446,0.00015847,2]
[400416202,1767532399861,-1906.91263554,0.00015847,2]
[400416203,1767532399893,-300.0,0.00015896,2]
[400416204,1767532399930,-348.94747977,0.00015897,2]
[400416205,1767532399963,-168.77905392,0.00015897,2]
[400416206,1767532399998,-500.0,0.00015897,2]
[400416207,1767532400035,-500.0,0.00015897,2]
[400416208,1767532400069,-500.0,0.00015897,2]
[400416209,1767532400104,-225.92067729,0.00015897,2]
[400416210,1767532400139,-500.0,0.00015897,2]
[400416211,1767532400358,-161.79341213,0.00015897,2]
[400416212,1767532409656,9158.410075,0.00015818,2]
[400416213,1767532427176,500.0,0.00015897,2]
[400416214,1767532427221,18.01310074,0.00015897,2]
[400416215,1767532427253,481.98689926,0.00015897,2]
[400416216,1767532427291,245.20272775,0.00015897,2]
[400416217,1767532427327,300.08527848,0.00015897,2]
[400416218,1767532427367,500.0,0.00015897,2]
[400416219,1767532427412,500.0,0.00015897,2]
[400416220,1767532427456,500.0,0.00015897,2]
[400416221,1767532427640,500.0,0.00015897,2]
[400416222,1767532427695,500.0,0.00015897,2]
[400416223,1767532427742,500.0,0.00015897,2]
[400416224,1767532427785,500.0,0.00015897,2]
[400416275,1767532441326,300.0,0.00015897,2]
[400416288,1767532453681,2252.99061225,0.00015798,2]
[400416289,1767532476214,2919.74448226,0.00015798,2]
[400416290,1767532476240,336.74839928,0.00015798,2]
[400416291,1767532501201,300.0,0.00015897,2]
[400416292,1767532501234,300.0,0.00015897,2]
[400416293,1767532501302,1200.0,0.00015897,2]
[400416294,1767532502736,300.0,0.00015897,2]
[400416295,1767532502771,300.0,0.00015897,2]
[400416297,1767532506161,154.09944903,0.00015897,2]
[400416298,1767532506195,200.0,0.00015897,2]
[400416299,1767532506249,500.0,0.00015897,2]
[400416300,1767532506598,500.0,0.00015897,2]
[400416302,1767532506969,500.0,0.00015897,2]
[400416304,1767532507505,500.0,0.00015897,2]
[400416306,1767532507818,500.0,0.00015897,2]
[400416307,1767532508138,500.0,0.00015897,2]
[400416308,1767532508566,500.0,0.00015897,2]
[400416309,1767532508917,500.0,0.00015897,2]
[400416310,1767532509493,500.0,0.00015897,2]
[400416313,1767532509744,500.0,0.00015897,2]
[400416314,1767532510274,500.0,0.00015897,2]
[400416315,1767532510916,500.0,0.00015897,2]
[400416316,1767532510958,500.0,0.00015897,2]
[400416317,1767532510997,409.16215169,0.00015897,2]
[400416318,1767532511026,90.83784831,0.00015897,2]
[400416319,1767532511063,500.0,0.00015897,2]
[400416320,1767532511101,500.0,0.00015897,2]
[400416321,1767532511303,500.0,0.00015897,2]
[400416322,1767532511348,500.0,0.00015897,2]
[400416323,1767532511409,500.0,0.00015897,2]
[400416324,1767532511541,500.0,0.00015897,2]
[400416325,1767532511613,500.0,0.00015897,2]
[400416326,1767532511652,500.0,0.00015897,2]
[400416327,1767532511695,500.0,0.00015897,2]
[400416328,1767532511743,500.0,0.00015897,2]
[400416329,1767532511781,500.0,0.00015897,2]
[400416330,1767532511824,500.0,0.00015897,2]
[400416331,1767532511866,428.6626998,0.00015897,2]
[400416332,1767532511906,500.0,0.00015897,2]
[400416333,1767532511946,500.0,0.00015897,2]
[400416334,1767532511983,500.0,0.00015897,2]
[400416335,1767532512020,500.0,0.00015897,2]
[400416336,1767532512058,500.0,0.00015897,2]
[400416337,1767532512101,500.0,0.00015897,2]
[400416338,1767532512147,480.50945189,0.00015897,2]
[400416339,1767532512178,19.49054811,0.00015897,2]
[400416343,1767532518639,500.0,0.00015897,2]
[400416344,1767532518909,500.0,0.00015897,2]
[400416345,1767532519193,500.0,0.00015897,2]
[400416349,1767532525781,186.16778178,0.00015798,2]
[400416354,1767532536308,193.04590127,0.00015897,2]
[400416355,1767532536815,193.23949292,0.00015897,2]
[400416356,1767532537184,500.0,0.00015897,2]
[400416357,1767532551979,1478.3,0.00043681,120]
[400416358,1767532552208,1478.3,0.00043681,120]
[400416359,1767532552451,1478.3,0.00043681,120]
[400416360,1767532552688,1478.3,0.00043681,120]
[400416361,1767532552958,1478.3,0.00043681,120]
[400416362,1767532553206,1478.3,0.00043681,120]
[400416363,1767532553447,1478.3,0.00043681,120]